[Event "Chpt France Universitaire 2024"]
[Site "Bastia, France"]
[Date "2024.04.07"]
[Round "9.11"]
[White "Arcelin, Gael"]
[Black "Blanquet, Camille"]
[Result "1-0"]
[TimeControl "15min+5s"]
[WhiteElo "2126"]
[BlackElo "2035"]

1. e4 {[%clk 00:15:05]} c6 {[%clk 00:15:05]} {[%emt 00:00:02]} 2. d4 {[%clk
00:14:47]} {[%emt 00:00:23]} d5 {[%clk 00:15:05]} {[%emt 00:00:03]} 3. e5
{[%clk 00:14:47]} c5 {[%clk 00:15:05]} {[%emt 00:00:02]} 4. c3 {[%clk
00:14:47]} {[%emt 00:00:01]} cxd4 {[%clk 00:14:59]} {[%emt 00:00:12]} 5. cxd4
{[%clk 00:14:47]} {[%emt 00:00:01]} Nc6 {[%clk 00:14:59]} {[%emt 00:00:01]} 6.
Be2 {[%clk 00:14:35]} {[%emt 00:00:17]} Bf5 {[%clk 00:14:50]} {[%emt 00:00:15]}
7. Nf3 {[%clk 00:14:35]} {[%emt 00:00:04]} e6 {[%clk 00:14:49]} {[%emt
00:00:06]} 8. O-O {[%clk 00:14:29]} {[%emt 00:00:11]} Qb6 {[%clk 00:14:45]}
{[%emt 00:00:09]} 9. Nc3 {[%clk 00:13:49]} {[%emt 00:00:45]} Bg6 {[%clk
00:14:24]} {[%emt 00:00:26]} 10. Na4 {[%clk 00:13:34]} {[%emt 00:00:19]} Qc7
{[%clk 00:13:49]} {[%emt 00:00:42]} 11. Bf4 {[%clk 00:13:24]} {[%emt 00:00:15]}
Nge7 {[%clk 00:13:36]} {[%emt 00:00:17]} 12. Rc1 {[%clk 00:13:22]} {[%emt
00:00:07]} Nf5 {[%clk 00:13:33]} {[%emt 00:00:09]} 13. g4 {[%clk 00:13:01]}
{[%emt 00:00:26]} Nfe7 {[%clk 00:13:27]} {[%emt 00:00:10]} 14. b4 {[%clk
00:13:01]} {[%emt 00:00:02]} a6 {[%clk 00:13:06]} {[%emt 00:00:27]} 15. Ne1
{[%clk 00:12:07]} {[%emt 00:00:59]} Rc8 {[%clk 00:12:12]} {[%emt 00:00:58]} 16.
Nc5 {[%clk 00:11:57]} {[%emt 00:00:15]} Qb6 {[%clk 00:11:52]} {[%emt 00:00:25]}
17. a3 {[%clk 00:11:49]} {[%emt 00:00:13]} h5 {[%clk 00:10:10]} {[%emt
00:01:47]} 18. h3 {[%clk 00:10:28]} {[%emt 00:01:26]} hxg4 {[%clk 00:10:09]}
{[%emt 00:00:07]} 19. hxg4 {[%clk 00:10:28]} Be4 {[%clk 00:09:36]} {[%emt
00:00:38]} 20. f3 {[%clk 00:10:22]} {[%emt 00:00:11]} Bg6 {[%clk 00:08:54]}
{[%emt 00:00:47]} 21. Kg2 {[%clk 00:10:12]} {[%emt 00:00:15]} Ng8 {[%clk
00:07:56]} {[%emt 00:01:03]} 22. Be3 {[%clk 00:09:40]} {[%emt 00:00:36]} Bxc5
{[%clk 00:07:28]} {[%emt 00:00:33]} 23. bxc5 {[%clk 00:09:29]} {[%emt
00:00:17]} Qd8 {[%clk 00:07:28]} {[%emt 00:00:05]} 24. Rh1 {[%clk 00:08:15]}
{[%emt 00:01:18]} Rxh1 {[%clk 00:07:28]} {[%emt 00:00:04]} 25. Kxh1 {[%clk
00:08:15]} {[%emt 00:00:01]} Qh4+ {[%clk 00:07:22]} {[%emt 00:00:11]} 26. Kg2
{[%clk 00:08:15]} {[%emt 00:00:04]} f5 {[%clk 00:07:06]} {[%emt 00:00:21]} 27.
exf6 {[%clk 00:06:10]} {[%emt 00:02:10]} gxf6 {[%clk 00:07:00]} {[%emt
00:00:12]} 28. Nd3 {[%clk 00:03:35]} {[%emt 00:02:39]} e5 {[%clk 00:05:58]}
{[%emt 00:01:08]} 29. dxe5 {[%clk 00:01:52]} {[%emt 00:01:48]} fxe5 {[%clk
00:05:58]} {[%emt 00:00:03]} 30. Nxe5 {[%clk 00:01:37]} {[%emt 00:00:20]} Nxe5
{[%clk 00:05:24]} {[%emt 00:00:39]} 31. Qxd5 {[%clk 00:01:37]} Nf7 {[%clk
00:05:18]} {[%emt 00:00:10]} 32. Qe6+ {[%clk 00:01:23]} {[%emt 00:00:19]} Ne7
{[%clk 00:05:08]} {[%emt 00:00:15]} 33. Rh1 {[%clk 00:01:23]} Nd8 {[%clk
00:04:10]} {[%emt 00:01:04]} 34. Qe5 {[%clk 00:00:56]} {[%emt 00:00:32]} Nf7
{[%clk 00:03:24]} {[%emt 00:00:52]} 35. Qg7 {[%clk 00:00:38]} {[%emt 00:00:22]}
Qxh1+ {[%clk 00:02:30]} {[%emt 00:00:59]} 36. Kxh1 {[%clk 00:00:38]} {[%emt
00:00:01]} Rc6 {[%clk 00:02:30]} 37. Qb2 {[%clk 00:00:35]} {[%emt 00:00:07]}
Re6 {[%clk 00:02:30]} {[%emt 00:00:05]} 38. Bf2 {[%clk 00:00:28]} {[%emt
00:00:12]} Ng5 {[%clk 00:02:07]} {[%emt 00:00:28]} 39. Bc4 {[%clk 00:00:23]}
{[%emt 00:00:10]} Rc6 {[%clk 00:01:56]} {[%emt 00:00:16]} 40. Kg2 {[%clk
00:00:23]} {[%emt 00:00:01]} Rc7 {[%clk 00:01:53]} {[%emt 00:00:08]} 41. Qe5
{[%clk 00:00:23]} {[%emt 00:00:01]} 1-0

[Event "Chpt France Universitaire 2024"]
[Site "Bastia, France"]
[Date "2024.04.07"]
[Round "9.12"]
[White "Fischer, Thorange"]
[Black "Hingouet, Matthieu"]
[Result "1-0"]
[TimeControl "15min+5s"]
[WhiteElo "1924"]
[BlackElo "2210"]

1. Nf3 {[%emt 00:08:42]} d5 {[%emt 00:00:20]} 2. g3 {[%emt 00:00:02]} Nf6
{[%emt 00:00:36]} 3. Bg2 {[%emt 00:00:01]} c5 {[%emt 00:00:32]} 4. O-O {[%emt
00:00:03]} e6 {[%emt 00:00:01]} 5. d3 {[%emt 00:00:02]} Nc6 {[%emt 00:00:05]} 6.
Nbd2 {[%emt 00:00:04]} g6 {[%emt 00:00:01]} 7. e4 {[%emt 00:00:03]} Bg7 {[%emt
00:00:04]} 8. Re1 {[%emt 00:00:02]} O-O {[%emt 00:00:06]} 9. Qe2 {[%emt
00:00:56]} b6 {[%emt 00:00:34]} 10. Nf1 {[%emt 00:00:04]} Ba6 {[%emt 00:01:51]}
11. e5 {[%emt 00:00:38]} Nd7 {[%emt 00:00:52]} 12. Bf4 {[%emt 00:00:05]} b5
{[%emt 00:00:25]} 13. h4 {[%emt 00:00:17]} Rc8 {[%emt 00:00:58]} 14. N1h2
{[%emt 00:00:14]} Nd4 {[%emt 00:00:53]} 15. Nxd4 {[%emt 00:00:03]} cxd4 16. Ng4
{[%emt 00:05:20]} Rc6 17. h5 {[%emt 00:01:24]} gxh5 {[%emt 00:02:26]} 18. Nh6+
{[%emt 00:00:05]} Kh8 {[%emt 00:00:02]} 19. Qxh5 {[%emt 00:00:09]} Qe8 {[%emt
00:00:57]} 20. Rac1 {[%emt 00:02:24]} f5 {[%emt 00:00:21]} 21. Qh3 {[%emt
00:01:31]} Qg6 {[%emt 00:00:41]} 22. Bf3 {[%emt 00:00:09]} Rfc8 {[%emt
00:00:45]} 23. Bh5 {[%emt 00:00:10]} Qxh6 {[%emt 00:00:46]} 24. Bxh6 {[%emt
00:00:02]} Bxh6 25. f4 {[%emt 00:00:28]} b4 {[%emt 00:01:03]} 26. Be8 {[%emt
00:01:05]} Rxe8 {[%emt 00:00:42]} 27. Qxh6 {[%emt 00:00:01]} Rg8 {[%emt
00:00:24]} 28. Kf2 {[%emt 00:00:15]} Rg6 29. Qh4 {[%emt 00:00:03]} Nf8 {[%emt
00:00:09]} 30. Rh1 {[%emt 00:00:11]} Kg8 31. Qe7 {[%emt 00:00:13]} Rb6 {[%emt
00:00:14]} 32. Rh3 {[%emt 00:00:02]} Rg7 {[%emt 00:00:04]} 33. Qf6 {[%emt
00:00:14]} Rf7 {[%emt 00:00:20]} 34. Qd8 {[%emt 00:00:14]} Rd7 {[%emt
00:00:01]} 35. Qe8 {[%emt 00:00:07]} Bb5 {[%emt 00:00:13]} 36. Qh5 {[%emt
00:00:01]} Rc6 {[%emt 00:00:17]} 37. Ke2 {[%emt 00:00:05]} Rc8 {[%emt
00:00:16]} 38. Kd2 {[%emt 00:00:05]} Rg7 39. Rg1 {[%emt 00:00:07]} Be8 {[%emt
00:00:02]} 40. Qf3 {[%emt 00:00:05]} Rgc7 {[%emt 00:00:03]} 41. Rc1 {[%emt
00:00:04]} a5 {[%emt 00:00:06]} 42. g4 {[%emt 00:00:02]} fxg4 43. Qxg4+ {[%emt
00:00:02]} Bg6 44. Rf3 {[%emt 00:00:06]} Rf7 {[%emt 00:00:05]} 45. Qg5 {[%emt
00:00:19]} a4 46. b3 {[%emt 00:00:01]} a3 {[%emt 00:00:04]} 47. Qg4 {[%emt
00:00:06]} Kh8 48. Rg3 {[%emt 00:00:03]} Kg8 {[%emt 00:00:04]} 49. Rf3 {[%emt
00:00:03]} Kh8 {[%emt 00:00:01]} 50. Rf2 {[%emt 00:00:03]} Bf5 {[%emt
00:00:03]} 51. Qh4 {[%emt 00:00:02]} Bg6 {[%emt 00:00:07]} 52. Rg1 {[%emt
00:00:02]} Rfc7 {[%emt 00:00:09]} 53. Kd1 {[%emt 00:00:06]} Rf7 {[%emt
00:00:03]} 54. Qh6 {[%emt 00:00:05]} Kg8 {[%emt 00:00:03]} 55. Qg5 {[%emt
00:00:04]} Kg7 {[%emt 00:00:05]} 56. f5 {[%emt 00:00:01]} exf5 {[%emt
00:00:04]} 57. Rxf5 {[%emt 00:00:01]} Rcc7 {[%emt 00:00:06]} 58. Rxf7+ {[%emt
00:00:06]} Rxf7 {[%emt 00:00:01]} 59. Ke2 {[%emt 00:00:03]} Ne6 60. Qg3 {[%emt
00:00:04]} Nf4+ {[%emt 00:00:01]} 61. Kd2 Nh5 {[%emt 00:00:11]} 62. Qg2 {[%emt
00:00:03]} Nf4 {[%emt 00:00:03]} 63. Qh1 {[%emt 00:00:02]} Rf5 {[%emt
00:00:16]} 64. Rf1 {[%emt 00:00:01]} h5 {[%emt 00:00:12]} 65. Qh4 {[%emt
00:00:02]} Ng2 {[%emt 00:00:06]} 66. Qe7+ {[%emt 00:00:03]} Kh6 {[%emt
00:00:03]} 67. Rxf5 {[%emt 00:00:05]} Bxf5 {[%emt 00:00:01]} 68. Qf6+ {[%emt
00:00:03]} Bg6 {[%emt 00:00:01]} 69. e6 {[%emt 00:00:01]} Ne3 {[%emt 00:00:05]}
70. e7 {[%emt 00:00:05]} Ng4 71. Qf4+ {[%emt 00:00:05]} Kg7 {[%emt 00:00:01]}
72. Qf8+ {[%emt 00:00:01]} Kh7 {[%emt 00:00:02]} 73. e8=Q {[%emt 00:00:04]}
Bxe8 {[%emt 00:00:03]} 74. Qxe8 Kh6 {[%emt 00:00:02]} 75. Qe6+ {[%emt
00:00:02]} Kg5 {[%emt 00:00:03]} 76. Qxd5+ {[%emt 00:00:01]} Kh4 {[%emt
00:00:02]} 77. Qxd4 {[%emt 00:00:03]} Kh3 {[%emt 00:00:02]} 78. Ke2 {[%emt
00:00:09]} h4 79. Kf3 {[%emt 00:00:03]} Nh2+ 80. Kf2 Ng4+ 1-0